[Event "Titled Tuesday Blitz June 20 Late 2023"]
[White "Lashkin, Jegor"]
[Black "Jovic, Stanoje"]
[WhiteFideId "13907808"]
[BlackFideId "905020"]
[WhiteElo "2368"]
[BlackElo "2236"]
[Result "1-0"]
[Round "1"]
[TimeControl "180+2"]
[Date "2023.06.20"]
[WhiteClock "0:00:14"]
[BlackClock "0:00:00"]
[Board "35"]

1. Nf3 {[%clk 0:03:00]}  Nf6 {[%clk 0:02:59]} 2. e3 {[%clk 0:02:59]}  c5 {[%clk 0:02:58]} 3. d4 {[%clk 0:02:59]}  b6 {[%clk 0:02:58]} 4. b3 {[%clk 0:02:58]}  Bb7 {[%clk 0:02:58]} 5. Bb2 {[%clk 0:02:58]}  e6 {[%clk 0:02:58]} 6. Bd3 {[%clk 0:02:57]}  Be7 {[%clk 0:02:58]} 7. O-O {[%clk 0:02:58]}  O-O {[%clk 0:02:57]} 8. Nbd2 {[%clk 0:02:56]}  d5 {[%clk 0:02:56]} 9. Qe2 {[%clk 0:02:55]}  a6 {[%clk 0:02:54]} 10. dxc5 {[%clk 0:02:47]}  bxc5 {[%clk 0:02:52]} 11. c4 {[%clk 0:02:46]}  Nc6 {[%clk 0:02:51]} 12. Rac1 {[%clk 0:02:45]}  Rc8 {[%clk 0:02:46]} 13. Rfd1 {[%clk 0:02:39]}  Qa5 {[%clk 0:02:41]} 14. cxd5 {[%clk 0:02:33]}  exd5 {[%clk 0:02:39]} 15. a3 {[%clk 0:02:24]}  Rfe8 {[%clk 0:02:35]} 16. Bf5 {[%clk 0:02:21]}  Rcd8 {[%clk 0:02:31]} 17. Qd3 {[%clk 0:02:12]}  g6 {[%clk 0:02:27]} 18. Bh3 {[%clk 0:02:12]}  Ne4 {[%clk 0:02:20]} 19. Nxe4 {[%clk 0:01:56]}  dxe4 {[%clk 0:02:09]} 20. Qxe4 {[%clk 0:01:57]}  Qb6 {[%clk 0:01:34]} 21. Qc2 {[%clk 0:01:49]}  Rxd1+ {[%clk 0:01:22]} 22. Rxd1 {[%clk 0:01:49]}  Rd8 {[%clk 0:01:22]} 23. Rc1 {[%clk 0:01:27]}  Na5 {[%clk 0:01:13]} 24. Qc3 {[%clk 0:01:00]}  f6 {[%clk 0:01:12]} 25. Nd2 {[%clk 0:00:54]}  Kg7 {[%clk 0:01:08]} 26. Bg4 {[%clk 0:00:41]}  Nc6 {[%clk 0:01:00]} 27. Nc4 {[%clk 0:00:38]}  Qc7 {[%clk 0:00:55]} 28. Bf3 {[%clk 0:00:34]}  Qd7 {[%clk 0:00:48]} 29. h4 {[%clk 0:00:33]}  Qd3 {[%clk 0:00:47]} 30. h5 {[%clk 0:00:19]}  gxh5 {[%clk 0:00:43]} 31. Bxh5 {[%clk 0:00:17]}  Qxc3 {[%clk 0:00:42]} 32. Bxc3 {[%clk 0:00:17]}  Nb8 {[%clk 0:00:32]} 33. Be2 {[%clk 0:00:17]}  Bd5 {[%clk 0:00:27]} 34. Ba5 {[%clk 0:00:12]}  Rg8 {[%clk 0:00:24]} 35. Rd1 {[%clk 0:00:12]}  Be4 {[%clk 0:00:22]} 36. f3 {[%clk 0:00:12]}  Bc2 {[%clk 0:00:20]} 37. Rc1 {[%clk 0:00:10]}  Bxb3 {[%clk 0:00:21]} 38. e4 {[%clk 0:00:07]}  Kf7 {[%clk 0:00:19]} 39. Ne3 {[%clk 0:00:06]}  Nc6 {[%clk 0:00:18]} 40. Bb6 {[%clk 0:00:07]}  Nd4 {[%clk 0:00:18]} 41. Kf2 {[%clk 0:00:05]}  Nxe2 {[%clk 0:00:17]} 42. Kxe2 {[%clk 0:00:05]}  Rc8 {[%clk 0:00:18]} 43. Ba5 {[%clk 0:00:03]}  Be6 {[%clk 0:00:17]} 44. Bc3 {[%clk 0:00:03]}  c4 {[%clk 0:00:17]} 45. Ra1 {[%clk 0:00:03]}  Rb8 {[%clk 0:00:17]} 46. Kd2 {[%clk 0:00:03]}  Rb3 {[%clk 0:00:17]} 47. Nc2 {[%clk 0:00:04]}  h5 {[%clk 0:00:16]} 48. a4 {[%clk 0:00:03]}  Rb8 {[%clk 0:00:16]} 49. Nd4 {[%clk 0:00:03]}  Rd8 {[%clk 0:00:17]} 50. Kc2 {[%clk 0:00:03]}  Bc5 {[%clk 0:00:16]} 51. Nxe6 {[%clk 0:00:03]}  Kxe6 {[%clk 0:00:17]} 52. Rh1 {[%clk 0:00:03]}  Rd3 {[%clk 0:00:17]} 53. Rxh5 {[%clk 0:00:03]}  Be3 {[%clk 0:00:16]} 54. Ra5 {[%clk 0:00:03]}  Bg5 {[%clk 0:00:16]} 55. Rxa6+ {[%clk 0:00:03]}  Kf7 {[%clk 0:00:16]} 56. Ra7+ {[%clk 0:00:03]}  Kg6 {[%clk 0:00:16]} 57. Rc7 {[%clk 0:00:03]}  Re3 {[%clk 0:00:16]} 58. Rxc4 {[%clk 0:00:01]}  Re2+ {[%clk 0:00:16]} 59. Kd3 {[%clk 0:00:02]}  Rxg2 {[%clk 0:00:17]} 60. a5 {[%clk 0:00:03]}  Rf2 {[%clk 0:00:17]} 61. a6 {[%clk 0:00:02]}  Rxf3+ {[%clk 0:00:17]} 62. Kc2 {[%clk 0:00:03]}  Rf2+ {[%clk 0:00:17]} 63. Kb3 {[%clk 0:00:03]}  Rh2 {[%clk 0:00:15]} 64. a7 {[%clk 0:00:02]}  Rh8 {[%clk 0:00:16]} 65. Ra4 {[%clk 0:00:02]}  Ra8 {[%clk 0:00:16]} 66. Bd4 {[%clk 0:00:03]}  Bf4 {[%clk 0:00:16]} 67. Kc4 {[%clk 0:00:03]}  Kf7 {[%clk 0:00:16]} 68. Kd5 {[%clk 0:00:03]}  Ke7 {[%clk 0:00:16]} 69. Kc6 {[%clk 0:00:03]}  Bb8 {[%clk 0:00:15]} 70. Bc5+ {[%clk 0:00:03]}  Ke6 {[%clk 0:00:15]} 71. Kb7 {[%clk 0:00:03]}  Bxa7 {[%clk 0:00:14]} 72. Bxa7 {[%clk 0:00:02]}  Re8 {[%clk 0:00:14]} 73. Bb8 {[%clk 0:00:02]}  Kf7 {[%clk 0:00:13]} 74. Bc7 {[%clk 0:00:02]}  Re6 {[%clk 0:00:14]} 75. Kc8 {[%clk 0:00:01]}  Kg6 {[%clk 0:00:15]} 76. Kd7 {[%clk 0:00:02]}  Kf7 {[%clk 0:00:13]} 77. Bd6 {[%clk 0:00:02]}  f5 {[%clk 0:00:13]} 78. e5 {[%clk 0:00:02]}  Rh6 {[%clk 0:00:11]} 79. Rf4 {[%clk 0:00:03]}  Kg6 {[%clk 0:00:11]} 80. e6 {[%clk 0:00:02]}  Rh7+ {[%clk 0:00:11]} 81. e7 {[%clk 0:00:02]}  Kf6 {[%clk 0:00:11]} 82. Rf1 {[%clk 0:00:03]}  Rf7 {[%clk 0:00:10]} 83. Kd8 {[%clk 0:00:03]}  Rxe7 {[%clk 0:00:09]} 84. Bxe7+ {[%clk 0:00:04]}  Kg6 {[%clk 0:00:09]} 85. Ke8 {[%clk 0:00:05]}  Kh5 {[%clk 0:00:09]} 86. Bd6 {[%clk 0:00:05]}  Kg4 {[%clk 0:00:10]} 87. Bf4 {[%clk 0:00:06]}  Kh3 {[%clk 0:00:10]} 88. Ke7 {[%clk 0:00:07]}  Kg2 {[%clk 0:00:11]} 89. Ra1 {[%clk 0:00:08]}  Kf3 {[%clk 0:00:11]} 90. Ra4 {[%clk 0:00:09]}  Kg4 {[%clk 0:00:12]} 91. Kf6 {[%clk 0:00:09]}  Kf3 {[%clk 0:00:12]} 92. Kxf5 {[%clk 0:00:10]}  Ke2 {[%clk 0:00:13]} 93. Ra5 {[%clk 0:00:10]}  Kd3 {[%clk 0:00:14]} 94. Re5 {[%clk 0:00:11]}  Kc3 {[%clk 0:00:15]} 95. Ke4 {[%clk 0:00:12]}  Kc4 {[%clk 0:00:16]} 96. Rd5 {[%clk 0:00:12]}  Kc3 {[%clk 0:00:16]} 97. Rd4 {[%clk 0:00:12]}  Kc2 {[%clk 0:00:17]} 98. Rd3 {[%clk 0:00:13]}  Kb1 {[%clk 0:00:17]} 99. Rd2 {[%clk 0:00:13]}  Kc1 {[%clk 0:00:17]} 100. Kd3 {[%clk 0:00:14]}  Kb1 {[%clk 0:00:17]} 101. Kc3 {[%clk 0:00:14]}  Kc1 {[%clk 0:00:00]} 102. Kb3 {[%clk 0:00:14]} 1-0


[Site "https://www.chess.com"]

[Event "Titled Tuesday Blitz June 20 Late 2023"]
[White "Saric, Ivan"]
[Black "Koc, Przemyslaw"]
[WhiteFideId "14508150"]
[BlackFideId "1109081"]
[WhiteElo "2576"]
[BlackElo "2161"]
[Result "1-0"]
[Round "1"]
[TimeControl "180+2"]
[Date "2023.06.20"]
[WhiteClock "0:00:34"]
[BlackClock "0:00:38"]
[Board "37"]

1. e4 {[%clk 0:02:57]}  e5 {[%clk 0:03:00]} 2. Nf3 {[%clk 0:02:58]}  Nf6 {[%clk 0:03:01]} 3. Nc3 {[%clk 0:02:56]}  d6 {[%clk 0:03:00]} 4. d4 {[%clk 0:02:56]}  Nbd7 {[%clk 0:03:00]} 5. Bc4 {[%clk 0:02:55]}  Be7 {[%clk 0:03:00]} 6. a4 {[%clk 0:02:56]}  c6 {[%clk 0:02:59]} 7. O-O {[%clk 0:02:53]}  O-O {[%clk 0:02:58]} 8. h3 {[%clk 0:02:53]}  b6 {[%clk 0:02:56]} 9. Re1 {[%clk 0:02:52]}  a6 {[%clk 0:02:55]} 10. Be3 {[%clk 0:02:48]}  Bb7 {[%clk 0:02:54]} 11. Ba2 {[%clk 0:02:42]}  b5 {[%clk 0:02:51]} 12. axb5 {[%clk 0:02:38]}  axb5 {[%clk 0:02:51]} 13. b4 {[%clk 0:02:38]}  Qc7 {[%clk 0:02:47]} 14. Qd3 {[%clk 0:02:12]}  h6 {[%clk 0:02:43]} 15. Bb3 {[%clk 0:02:10]}  exd4 {[%clk 0:02:30]} 16. Nxd4 {[%clk 0:02:06]}  Ne5 {[%clk 0:02:31]} 17. Qd2 {[%clk 0:02:02]}  Rxa1 {[%clk 0:02:29]} 18. Rxa1 {[%clk 0:02:03]}  Ra8 {[%clk 0:02:29]} 19. Rd1 {[%clk 0:02:00]}  Bf8 {[%clk 0:02:27]} 20. Nf5 {[%clk 0:01:59]}  Rd8 {[%clk 0:02:19]} 21. Bd4 {[%clk 0:01:53]}  Re8 {[%clk 0:02:05]} 22. Qf4 {[%clk 0:01:49]}  c5 {[%clk 0:01:57]} 23. bxc5 {[%clk 0:01:33]}  dxc5 {[%clk 0:01:57]} 24. Nxb5 {[%clk 0:01:32]}  Qb8 {[%clk 0:01:39]} 25. Bxe5 {[%clk 0:01:11]}  Qxe5 {[%clk 0:01:39]} 26. Qxe5 {[%clk 0:00:52]}  Rxe5 {[%clk 0:01:39]} 27. Nfd6 {[%clk 0:00:49]}  Bxd6 {[%clk 0:01:23]} 28. Nxd6 {[%clk 0:00:50]}  Re7 {[%clk 0:01:23]} 29. e5 {[%clk 0:00:37]}  Rxe5 {[%clk 0:00:38]} 30. Nxb7 {[%clk 0:00:34]} 1-0


[Site "https://www.chess.com"]

[Event "Titled Tuesday Blitz June 20 Late 2023"]
[White "Bazilius, Augustinas"]
[Black "Ibarra Jerez, Jose Carlos"]
[WhiteFideId "12832251"]
[BlackFideId "2226332"]
[WhiteElo "1980"]
[BlackElo "2631"]
[Result "0-1"]
[Round "1"]
[TimeControl "180+2"]
[Date "2023.06.20"]
[WhiteClock "0:01:23"]
[BlackClock "0:01:02"]
[Board "38"]

1. d4 {[%clk 0:02:52]}  Nf6 {[%clk 0:02:55]} 2. c4 {[%clk 0:02:53]}  d6 {[%clk 0:02:54]} 3. Nc3 {[%clk 0:02:50]}  e5 {[%clk 0:02:54]} 4. e4 {[%clk 0:02:45]}  exd4 {[%clk 0:02:54]} 5. Qxd4 {[%clk 0:02:46]}  Nc6 {[%clk 0:02:55]} 6. Qd1 {[%clk 0:02:46]}  g6 {[%clk 0:02:54]} 7. Nf3 {[%clk 0:02:46]}  Bg7 {[%clk 0:02:54]} 8. Be2 {[%clk 0:02:46]}  O-O {[%clk 0:02:55]} 9. O-O {[%clk 0:02:47]}  Re8 {[%clk 0:02:55]} 10. Qc2 {[%clk 0:02:47]}  Nxe4 {[%clk 0:02:22]} 11. Nxe4 {[%clk 0:02:33]}  Bf5 {[%clk 0:02:21]} 12. Nfd2 {[%clk 0:02:30]}  Nd4 {[%clk 0:02:21]} 13. Qd3 {[%clk 0:02:29]}  b5 {[%clk 0:02:20]} 14. Bf3 {[%clk 0:02:05]}  bxc4 {[%clk 0:02:13]} 15. Qxc4 {[%clk 0:02:00]}  d5 {[%clk 0:02:07]} 16. Nf6+ {[%clk 0:01:54]}  Qxf6 {[%clk 0:01:58]} 17. Bxd5 {[%clk 0:01:54]}  Rad8 {[%clk 0:01:53]} 18. Nf3 {[%clk 0:01:51]}  Nxf3+ {[%clk 0:01:31]} 19. gxf3 {[%clk 0:01:51]}  Bh3 {[%clk 0:01:07]} 20. Rd1 {[%clk 0:01:46]}  c6 {[%clk 0:01:04]} 21. Bg5 {[%clk 0:01:23]}  Qxg5+ {[%clk 0:01:02]} 0-1


[Site "https://www.chess.com"]

[Event "Titled Tuesday Blitz June 20 Late 2023"]
[White "Sjugirov, Sanan"]
[Black "Turner, Max N"]
[WhiteFideId "4189302"]
[BlackFideId "447722"]
[WhiteElo "2569"]
[BlackElo "2157"]
[Result "1-0"]
[Round "1"]
[TimeControl "180+2"]
[Date "2023.06.20"]
[WhiteClock "0:00:09"]
[BlackClock "0:00:01"]
[Board "39"]

1. d4 {[%clk 0:03:00]}  d5 {[%clk 0:02:57]} 2. c4 {[%clk 0:03:01]}  e6 {[%clk 0:02:57]} 3. Nc3 {[%clk 0:03:01]}  Nf6 {[%clk 0:02:58]} 4. cxd5 {[%clk 0:03:01]}  exd5 {[%clk 0:02:58]} 5. Bg5 {[%clk 0:03:01]}  c6 {[%clk 0:02:59]} 6. e3 {[%clk 0:03:01]}  Be7 {[%clk 0:02:59]} 7. Bd3 {[%clk 0:03:01]}  h6 {[%clk 0:03:00]} 8. Bh4 {[%clk 0:03:01]}  O-O {[%clk 0:03:01]} 9. Nge2 {[%clk 0:03:01]}  Re8 {[%clk 0:03:01]} 10. Qc2 {[%clk 0:03:01]}  Nbd7 {[%clk 0:03:02]} 11. O-O {[%clk 0:03:01]}  Nh5 {[%clk 0:03:01]} 12. Bxe7 {[%clk 0:03:00]}  Qxe7 {[%clk 0:03:02]} 13. Rae1 {[%clk 0:02:58]}  Nhf6 {[%clk 0:03:02]} 14. Kh1 {[%clk 0:02:57]}  Ne4 {[%clk 0:03:00]} 15. f3 {[%clk 0:02:46]}  Nxc3 {[%clk 0:02:52]} 16. Nxc3 {[%clk 0:02:47]}  Nf6 {[%clk 0:02:52]} 17. e4 {[%clk 0:02:45]}  dxe4 {[%clk 0:02:53]} 18. fxe4 {[%clk 0:02:46]}  Ng4 {[%clk 0:02:47]} 19. h3 {[%clk 0:02:42]}  Qh4 {[%clk 0:02:44]} 20. Kg1 {[%clk 0:02:38]}  Nf6 {[%clk 0:02:34]} 21. Qd2 {[%clk 0:02:26]}  Bxh3 {[%clk 0:02:15]} 22. Rf4 {[%clk 0:02:24]}  Bg4 {[%clk 0:01:45]} 23. Qf2 {[%clk 0:01:05]}  Qxf2+ {[%clk 0:01:44]} 24. Kxf2 {[%clk 0:01:06]}  Be6 {[%clk 0:01:40]} 25. e5 {[%clk 0:01:02]}  Nd5 {[%clk 0:01:38]} 26. Nxd5 {[%clk 0:01:02]}  Bxd5 {[%clk 0:01:38]} 27. a3 {[%clk 0:01:00]}  Rad8 {[%clk 0:01:39]} 28. b4 {[%clk 0:00:51]}  Be6 {[%clk 0:01:39]} 29. Ke3 {[%clk 0:00:47]}  Rd7 {[%clk 0:01:36]} 30. Rd1 {[%clk 0:00:43]}  Red8 {[%clk 0:01:36]} 31. Be2 {[%clk 0:00:39]}  a5 {[%clk 0:01:33]} 32. bxa5 {[%clk 0:00:38]}  Ra8 {[%clk 0:01:33]} 33. a6 {[%clk 0:00:37]}  b5 {[%clk 0:01:24]} 34. a4 {[%clk 0:00:28]}  bxa4 {[%clk 0:01:14]} 35. d5 {[%clk 0:00:24]}  Bxd5 {[%clk 0:01:06]} 36. Rxa4 {[%clk 0:00:22]}  Re7 {[%clk 0:01:07]} 37. Kd4 {[%clk 0:00:19]}  Bb3 {[%clk 0:01:06]} 38. Rda1 {[%clk 0:00:19]}  c5+ {[%clk 0:01:00]} 39. Ke4 {[%clk 0:00:15]}  Bxa4 {[%clk 0:00:57]} 40. Rxa4 {[%clk 0:00:16]}  f6 {[%clk 0:00:58]} 41. Bc4+ {[%clk 0:00:16]}  Kf8 {[%clk 0:00:57]} 42. e6 {[%clk 0:00:17]}  Rea7 {[%clk 0:00:50]} 43. Kd5 {[%clk 0:00:16]}  Ke7 {[%clk 0:00:50]} 44. Kxc5 {[%clk 0:00:16]}  Rc8+ {[%clk 0:00:47]} 45. Kb6 {[%clk 0:00:15]}  Rcc7 {[%clk 0:00:35]} 46. Bd5 {[%clk 0:00:14]}  g5 {[%clk 0:00:29]} 47. Ra5 {[%clk 0:00:13]}  h5 {[%clk 0:00:13]} 48. Bb7 {[%clk 0:00:12]}  Rcxb7+ {[%clk 0:00:12]} 49. axb7 {[%clk 0:00:12]}  Rxb7+ {[%clk 0:00:12]} 50. Kxb7 {[%clk 0:00:12]}  Kxe6 {[%clk 0:00:13]} 51. Kc6 {[%clk 0:00:12]}  f5 {[%clk 0:00:12]} 52. Kc5 {[%clk 0:00:09]}  Ke5 {[%clk 0:00:13]} 53. Kc4+ {[%clk 0:00:08]}  Ke4 {[%clk 0:00:13]} 54. Kc3 {[%clk 0:00:08]}  h4 {[%clk 0:00:11]} 55. Kd2 {[%clk 0:00:08]}  Kf4 {[%clk 0:00:10]} 56. Ke2 {[%clk 0:00:08]}  g4 {[%clk 0:00:09]} 57. Kf1 {[%clk 0:00:09]}  Ke4 {[%clk 0:00:07]} 58. Ra4+ {[%clk 0:00:08]}  Ke3 {[%clk 0:00:07]} 59. Ra3+ {[%clk 0:00:08]}  Kf4 {[%clk 0:00:08]} 60. Kf2 {[%clk 0:00:09]}  Ke4 {[%clk 0:00:05]} 61. Ra4+ {[%clk 0:00:09]}  Ke5 {[%clk 0:00:01]} 62. Ke3 {[%clk 0:00:09]} 1-0


[Site "https://www.chess.com"]

[Event "Titled Tuesday Blitz June 20 Late 2023"]
[White "Corrales Jimenez, Fidel"]
[Black "Araujo Sanchez, Josue"]
[WhiteFideId "3506690"]
[BlackFideId "6416896"]
[WhiteElo "2511"]
[BlackElo "2417"]
[Result "1-0"]
[Round "1"]
[TimeControl "180+2"]
[Date "2023.06.20"]
[WhiteClock "0:00:23"]
[BlackClock "0:00:00"]
[Board "41"]

1. c4 {[%clk 0:02:58]}  g6 {[%clk 0:02:56]} 2. g3 {[%clk 0:02:52]}  Bg7 {[%clk 0:02:57]} 3. Bg2 {[%clk 0:02:51]}  c5 {[%clk 0:02:57]} 4. Nf3 {[%clk 0:02:51]}  Nc6 {[%clk 0:02:57]} 5. O-O {[%clk 0:02:52]}  d6 {[%clk 0:02:57]} 6. e3 {[%clk 0:02:52]}  Nf6 {[%clk 0:02:52]} 7. d4 {[%clk 0:02:52]}  O-O {[%clk 0:02:53]} 8. Nc3 {[%clk 0:02:51]}  Bf5 {[%clk 0:02:49]} 9. Re1 {[%clk 0:02:49]}  Ne4 {[%clk 0:02:49]} 10. Nh4 {[%clk 0:02:43]}  Nxc3 {[%clk 0:02:46]} 11. bxc3 {[%clk 0:02:44]}  Bd7 {[%clk 0:02:44]} 12. Rb1 {[%clk 0:02:11]}  b6 {[%clk 0:02:41]} 13. Bxc6 {[%clk 0:01:48]}  Bxc6 {[%clk 0:02:39]} 14. d5 {[%clk 0:01:49]}  Bd7 {[%clk 0:02:39]} 15. Qd3 {[%clk 0:01:48]}  e5 {[%clk 0:02:30]} 16. e4 {[%clk 0:01:47]}  Bf6 {[%clk 0:02:26]} 17. Ng2 {[%clk 0:01:43]}  Bg7 {[%clk 0:02:22]} 18. f3 {[%clk 0:01:24]}  f6 {[%clk 0:02:18]} 19. Bd2 {[%clk 0:01:24]}  Qe8 {[%clk 0:02:17]} 20. Rf1 {[%clk 0:01:23]}  f5 {[%clk 0:02:15]} 21. Rbe1 {[%clk 0:01:22]}  fxe4 {[%clk 0:02:15]} 22. fxe4 {[%clk 0:01:22]}  Qe7 {[%clk 0:02:09]} 23. Nh4 {[%clk 0:01:17]}  Bh3 {[%clk 0:02:05]} 24. Ng2 {[%clk 0:01:14]}  Rxf1+ {[%clk 0:02:04]} 25. Rxf1 {[%clk 0:01:14]}  Rf8 {[%clk 0:02:05]} 26. Rxf8+ {[%clk 0:01:13]}  Qxf8 {[%clk 0:02:06]} 27. Qf1 {[%clk 0:01:08]}  Qe8 {[%clk 0:01:57]} 28. Qd1 {[%clk 0:01:04]}  h5 {[%clk 0:01:44]} 29. Ne3 {[%clk 0:01:02]}  Qf7 {[%clk 0:01:38]} 30. Qe2 {[%clk 0:01:00]}  Kh7 {[%clk 0:01:38]} 31. Be1 {[%clk 0:00:59]}  Bh6 {[%clk 0:01:36]} 32. Nd1 {[%clk 0:00:59]}  Bg4 {[%clk 0:01:34]} 33. Qd3 {[%clk 0:00:59]}  Bf3 {[%clk 0:01:16]} 34. Bf2 {[%clk 0:00:55]}  Qf6 {[%clk 0:00:59]} 35. h4 {[%clk 0:00:51]}  g5 {[%clk 0:00:47]} 36. Ne3 {[%clk 0:00:46]}  gxh4 {[%clk 0:00:46]} 37. gxh4 {[%clk 0:00:46]}  Qg7+ {[%clk 0:00:44]} 38. Kf1 {[%clk 0:00:46]}  Bxe3 {[%clk 0:00:43]} 39. Qxe3 {[%clk 0:00:47]}  Qg2+ {[%clk 0:00:41]} 40. Ke1 {[%clk 0:00:47]}  Qh1+ {[%clk 0:00:40]} 41. Bg1 {[%clk 0:00:46]}  Qxh4+ {[%clk 0:00:40]} 42. Kd2 {[%clk 0:00:44]}  Qxe4 {[%clk 0:00:34]} 43. Qg5 {[%clk 0:00:44]}  Qe2+ {[%clk 0:00:30]} 44. Kc1 {[%clk 0:00:44]}  Qxc4 {[%clk 0:00:22]} 45. Qf5+ {[%clk 0:00:42]}  Kg7 {[%clk 0:00:18]} 46. Qd7+ {[%clk 0:00:41]}  Kg6 {[%clk 0:00:18]} 47. Qe6+ {[%clk 0:00:37]}  Kg5 {[%clk 0:00:17]} 48. Be3+ {[%clk 0:00:38]}  Kh4 {[%clk 0:00:16]} 49. Bf2+ {[%clk 0:00:39]}  Kg5 {[%clk 0:00:16]} 50. Qe7+ {[%clk 0:00:37]}  Kf4 {[%clk 0:00:14]} 51. Qf6+ {[%clk 0:00:22]}  Kg4 {[%clk 0:00:11]} 52. Qh4+ {[%clk 0:00:22]}  Kf5 {[%clk 0:00:00]} 53. Qxc4 {[%clk 0:00:23]} 1-0


[Site "https://www.chess.com"]

[Event "Titled Tuesday Blitz June 20 Late 2023"]
[White "Reprintsev, Alexander"]
[Black "Iturrizaga Bonelli, Eduardo"]
[WhiteFideId "14100541"]
[BlackFideId "3901211"]
[WhiteElo "2229"]
[BlackElo "2647"]
[Result "0-1"]
[Round "1"]
[TimeControl "180+2"]
[Date "2023.06.20"]
[WhiteClock "0:00:00"]
[BlackClock "0:00:53"]
[Board "44"]

1. e4 {[%clk 0:02:56]}  c5 {[%clk 0:03:00]} 2. Nf3 {[%clk 0:02:55]}  e6 {[%clk 0:03:00]} 3. b3 {[%clk 0:02:52]}  Nf6 {[%clk 0:03:00]} 4. e5 {[%clk 0:02:51]}  Nd5 {[%clk 0:03:01]} 5. Bb2 {[%clk 0:02:51]}  Nc6 {[%clk 0:03:01]} 6. g3 {[%clk 0:02:50]}  Be7 {[%clk 0:02:58]} 7. c4 {[%clk 0:02:49]}  Nb6 {[%clk 0:02:57]} 8. Bg2 {[%clk 0:02:49]}  O-O {[%clk 0:02:57]} 9. O-O {[%clk 0:02:49]}  d5 {[%clk 0:02:58]} 10. exd6 {[%clk 0:02:49]}  Qxd6 {[%clk 0:02:56]} 11. Nc3 {[%clk 0:02:49]}  Rd8 {[%clk 0:02:56]} 12. Re1 {[%clk 0:02:47]}  Bd7 {[%clk 0:02:50]} 13. Nb5 {[%clk 0:02:45]}  Qb8 {[%clk 0:02:50]} 14. Ne5 {[%clk 0:02:44]}  Be8 {[%clk 0:02:41]} 15. Nxc6 {[%clk 0:02:41]}  Bxc6 {[%clk 0:02:39]} 16. Bxc6 {[%clk 0:02:41]}  bxc6 {[%clk 0:02:39]} 17. Na3 {[%clk 0:02:37]}  Qd6 {[%clk 0:02:32]} 18. Bc3 {[%clk 0:02:33]}  Nd7 {[%clk 0:02:32]} 19. Nc2 {[%clk 0:02:31]}  Bf6 {[%clk 0:02:32]} 20. Qe2 {[%clk 0:02:26]}  a5 {[%clk 0:02:29]} 21. a4 {[%clk 0:02:23]}  Rdb8 {[%clk 0:02:25]} 22. Rab1 {[%clk 0:02:13]}  Rb7 {[%clk 0:02:25]} 23. Ne3 {[%clk 0:02:05]}  Bd4 {[%clk 0:02:21]} 24. Qf3 {[%clk 0:01:56]}  Rab8 {[%clk 0:02:09]} 25. Bxa5 {[%clk 0:01:54]}  Rxb3 {[%clk 0:02:08]} 26. Rxb3 {[%clk 0:01:54]}  Rxb3 {[%clk 0:02:09]} 27. Kg2 {[%clk 0:01:44]}  Ra3 {[%clk 0:02:02]} 28. Rb1 {[%clk 0:01:43]}  Rxa4 {[%clk 0:01:59]} 29. Bc3 {[%clk 0:01:40]}  h6 {[%clk 0:01:59]} 30. Rb7 {[%clk 0:01:33]}  Ra3 {[%clk 0:01:57]} 31. Qe4 {[%clk 0:00:51]}  Bxc3 {[%clk 0:01:46]} 32. dxc3 {[%clk 0:00:50]}  Rxc3 {[%clk 0:01:46]} 33. Ng4 {[%clk 0:00:46]}  Rd3 {[%clk 0:01:08]} 34. Ne3 {[%clk 0:00:35]}  Rd4 {[%clk 0:01:05]} 35. Qb1 {[%clk 0:00:34]}  g6 {[%clk 0:01:02]} 36. h4 {[%clk 0:00:30]}  h5 {[%clk 0:01:02]} 37. Qa2 {[%clk 0:00:28]}  Kg7 {[%clk 0:01:01]} 38. Qa7 {[%clk 0:00:27]}  Rd2 {[%clk 0:00:58]} 39. Kh3 {[%clk 0:00:25]}  e5 {[%clk 0:00:56]} 40. g4 {[%clk 0:00:22]}  hxg4+ {[%clk 0:00:56]} 41. Nxg4 {[%clk 0:00:19]}  Qd3+ {[%clk 0:00:55]} 42. Kh2 {[%clk 0:00:14]}  Qf5 {[%clk 0:00:53]} 43. Rxd7 {[%clk 0:00:08]}  Rxd7 {[%clk 0:00:51]} 44. Qxc5 {[%clk 0:00:05]}  Qf4+ {[%clk 0:00:52]} 45. Kh3 {[%clk 0:00:05]}  Qf3+ {[%clk 0:00:52]} 46. Kh2 {[%clk 0:00:00]}  Qxg4 {[%clk 0:00:53]} 0-1


[Site "https://www.chess.com"]

[Event "Titled Tuesday Blitz June 20 Late 2023"]
[White "Krishnakumar, Sriram"]
[Black "Baskakov, Egor"]
[WhiteFideId "30915856"]
[BlackFideId "24197866"]
[WhiteElo "2471"]
[BlackElo "2225"]
[Result "0-1"]
[Round "1"]
[TimeControl "180+2"]
[Date "2023.06.20"]
[WhiteClock "0:00:08"]
[BlackClock "0:00:35"]
[Board "48"]

1. e4 {[%clk 0:03:00]}  c5 {[%clk 0:02:58]} 2. Nf3 {[%clk 0:02:59]}  Nf6 {[%clk 0:02:58]} 3. e5 {[%clk 0:02:58]}  Nd5 {[%clk 0:02:59]} 4. c3 {[%clk 0:02:58]}  Nc6 {[%clk 0:02:58]} 5. d4 {[%clk 0:02:58]}  cxd4 {[%clk 0:02:59]} 6. cxd4 {[%clk 0:02:59]}  g6 {[%clk 0:02:59]} 7. Nc3 {[%clk 0:03:00]}  Nxc3 {[%clk 0:02:59]} 8. bxc3 {[%clk 0:03:00]}  Bg7 {[%clk 0:03:00]} 9. Bd3 {[%clk 0:02:57]}  O-O {[%clk 0:03:00]} 10. O-O {[%clk 0:02:57]}  d6 {[%clk 0:03:01]} 11. exd6 {[%clk 0:02:57]}  Qxd6 {[%clk 0:03:01]} 12. Re1 {[%clk 0:02:56]}  e5 {[%clk 0:03:01]} 13. a4 {[%clk 0:02:48]}  Rd8 {[%clk 0:03:00]} 14. Ba3 {[%clk 0:02:47]}  Qc7 {[%clk 0:02:59]} 15. Rc1 {[%clk 0:02:33]}  Qa5 {[%clk 0:02:29]} 16. Bb5 {[%clk 0:02:22]}  exd4 {[%clk 0:02:26]} 17. cxd4 {[%clk 0:02:13]}  Bg4 {[%clk 0:02:15]} 18. Bxc6 {[%clk 0:01:58]}  bxc6 {[%clk 0:02:12]} 19. Bc5 {[%clk 0:01:58]}  Re8 {[%clk 0:01:57]} 20. Rxe8+ {[%clk 0:01:37]}  Rxe8 {[%clk 0:01:58]} 21. h3 {[%clk 0:01:36]}  Be6 {[%clk 0:01:54]} 22. Ne5 {[%clk 0:01:11]}  Bd5 {[%clk 0:01:47]} 23. Nd3 {[%clk 0:01:11]}  Bh6 {[%clk 0:01:41]} 24. Ra1 {[%clk 0:00:59]}  Qc3 {[%clk 0:01:34]} 25. Nb4 {[%clk 0:00:54]}  Bb3 {[%clk 0:01:21]} 26. Qf1 {[%clk 0:00:42]}  Re6 {[%clk 0:01:11]} 27. a5 {[%clk 0:00:34]}  Bd2 {[%clk 0:01:04]} 28. a6 {[%clk 0:00:26]}  Bc4 {[%clk 0:01:04]} 29. Qd1 {[%clk 0:00:25]}  Bb3 {[%clk 0:00:59]} 30. Qf1 {[%clk 0:00:24]}  h5 {[%clk 0:00:54]} 31. Kh2 {[%clk 0:00:23]}  h4 {[%clk 0:00:53]} 32. Rb1 {[%clk 0:00:20]}  Bc4 {[%clk 0:00:51]} 33. Qd1 {[%clk 0:00:19]}  Re2 {[%clk 0:00:50]} 34. d5 {[%clk 0:00:12]}  cxd5 {[%clk 0:00:46]} 35. Nxd5 {[%clk 0:00:11]}  Qe5+ {[%clk 0:00:43]} 36. Kg1 {[%clk 0:00:09]}  Bxd5 {[%clk 0:00:41]} 37. Rb8+ {[%clk 0:00:09]}  Kh7 {[%clk 0:00:39]} 38. Bd4 {[%clk 0:00:09]}  Re1+ {[%clk 0:00:35]} 39. Qxe1 {[%clk 0:00:08]}  Qxe1+ {[%clk 0:00:36]} 40. Kh2 {[%clk 0:00:08]}  Bf4+ {[%clk 0:00:35]} 41. g3 {[%clk 0:00:08]}  Qh1# {[%clk 0:00:35]} 0-1


[Site "https://www.chess.com"]